fUST/lending_fUST_20240706
["ID","MTS","AMOUNT","RATE_DAILY","PERIOD"]
[331320981,1720221053249,-500.0,0.00049863,120]
[331320982,1720221053258,-1194.82,0.00049863,120]
[331320983,1720221053268,-535.73,0.00049863,120]
[331320984,1720221053277,-774.85,0.00049863,120]
[331320985,1720221053286,-201.44237853,0.00049863,120]
[331320986,1720221053296,-557.71,0.00049863,120]
[331320987,1720221053305,-594.30388573,0.00049863,120]
[331320988,1720221053315,-519.31,0.00049863,120]
[331320989,1720221053325,-456.19795726,0.00049863,20]
[331320990,1720221053334,-1339.37,0.00049863,120]
[331320991,1720221053344,-500.0,0.00049863,120]
[331320992,1720221053353,-500.0,0.00049863,120]
[331320993,1720221053362,-514.85,0.00049863,120]
[331320994,1720221053371,-500.0,0.00049863,120]
[331320995,1720221053381,-500.0,0.00049863,120]
[331320996,1720221053391,-500.0,0.00049863,120]
[331320997,1720221053400,-500.0,0.00049863,120]
[331320998,1720221053410,-500.0,0.00049863,30]
[331320999,1720221053420,-1294.06,0.00049863,60]
[331321000,1720221053431,-500.0,0.00049863,120]
[331321001,1720221053441,-560.71,0.00049863,120]
[331321002,1720221053451,-500.0,0.00049863,120]
[331321003,1720221053461,-500.0,0.00049863,120]
[331321004,1720221053471,-500.0,0.00049863,120]
[331321005,1720221053481,-500.0,0.00049863,120]
[331321006,1720221053492,-599.37,0.00049863,120]
[331321007,1720221053502,-200.0,0.00049863,7]
[331321008,1720221053511,-500.0,0.00049863,120]
[331321009,1720221053521,-441.95865992,0.00049863,120]
[331321010,1720221053530,-500.0,0.00049863,120]
[331321011,1720221053539,-575.05095929,0.00049863,120]
[331321012,1720221053744,-16.20904071,0.00049863,120]
[331321013,1720221053759,-935.34,0.00049863,120]
[331321014,1720221053772,-480.89990541,0.00049863,120]
[331321015,1720221053788,-19.10009459,0.00049863,120]
[331321016,1720221053800,-448.6071051,0.00049863,120]
[331321022,1720221890027,5062.94199392,0.0004,7]
[331321025,1720221916836,-159.544545,0.00021096,2]
[331321026,1720221918006,-187.589903,0.00039122,2]
[331321027,1720221919051,-162.700982,0.00039233,2]
[331321028,1720221937588,-403.21401882,0.00043287,4]
[331321029,1720221937944,-159.544545,0.00044274,2]
[331321030,1720221938386,-187.589903,0.00044454,2]
[331321031,1720221938415,-1793.06840698,0.00047,2]
[331321033,1720222032031,-324.82950934,0.00039233,3]
[331321034,1720222032463,-3000.0,0.00047,2]
[331321035,1720222033531,-1435.17518016,0.00047,4]
[331321036,1720222039578,-663.46610658,0.00047,4]
[331321037,1720222040011,-3501.33534123,0.00047,4]
[331321038,1720222044418,-4834.78,0.00047,4]
[331321039,1720222176663,173.62843894,0.00043834,4]
[331321043,1720222225167,549.92,0.00031848,30]
[331321053,1720222232768,-258.18004786,0.00047,4]
[331321054,1720222232780,-2916.066193,0.00047,4]
[331321055,1720222232793,-2479.8989747,0.00047,4]
[331321057,1720222232803,-290.27376141,0.00047,4]
[331321059,1720222232814,-1906.85890985,0.00047,4]
[331321061,1720222232824,-4329.54540186,0.00048,120]
[331321063,1720222232836,-935.67306823,0.00048,120]
[331321067,1720222232862,159.8313533,0.00021096,2]
[331321138,1720222239786,-7119.51126291,0.00048,120]
[331321139,1720222239796,-548.171,0.00048853,2]
[331321140,1720222239806,-500.0,0.00049,120]
[331321141,1720222239816,-500.0,0.00049,120]
[331321142,1720222239826,-500.0,0.00049,120]
[331321143,1720222239836,-500.0,0.00049,120]
[331321144,1720222239846,-500.0,0.00049,120]
[331321145,1720222239856,-500.0,0.00049,120]
[331321146,1720222239866,-500.0,0.00049,120]
[331321147,1720222239876,-500.0,0.00049,120]
[331321149,1720222239887,-500.0,0.00049,120]
[331321151,1720222239897,-500.0,0.00049,120]
[331321153,1720222239908,-413.92,0.00049,120]
[331321155,1720222239923,-1086.70784393,0.00049215,2]
[331321157,1720222239932,-775.03553013,0.00049215,28]
[331321159,1720222239944,-133.17791331,0.00049295,3]
[331321177,1720222246157,-1316.43208669,0.00049295,3]
[331321180,1720222246169,-2263.32,0.00049295,3]
[331321182,1720222246179,-1886.1,0.00049295,3]
[331321184,1720222246188,-500.0,0.00049304,7]
[331321186,1720222246198,-4101.21448167,0.00049305,6]
[331321188,1720222246211,-142226.55892644,0.00049305,6]
[331321191,1720222247091,-282.60187487,0.00049305,6]
[331321192,1720222247267,-2141.75518277,0.00049305,6]
[331321200,1720223223366,-179.456719,0.00021096,2]
[331321201,1720223233727,-878.09217026,0.00039993,4]
[331321202,1720223234242,-1269.13961646,0.00041094,120]
[331321203,1720223235015,-162.577294,0.00041292,2]
[331321204,1720223235038,-166.6666664,0.00041605,2]
[331321205,1720223235061,-155.9,0.00043808,31]
[331321206,1720223235086,-152.80906433,0.00044358,30]
[331321207,1720223235110,-175.0,0.00044493,31]
[331321208,1720223235132,-152.0,0.00044836,31]
[331321209,1720223235155,-300.0,0.00045177,3]
[331321210,1720223235178,-175.0,0.00045178,31]
[331321211,1720223235200,-152.0,0.00045178,31]
[331321212,1720223235222,-175.0,0.00045863,31]
[331321213,1720223235244,-152.0,0.00045863,31]
[331321214,1720223235267,-753.89518855,0.00047,30]
[331321215,1720223239103,-4794.17771257,0.00047,30]
[331321218,1720223358953,-1269.13961646,0.00043834,120]
[331321219,1720223359442,-1269.13961646,0.00043834,120]
[331321220,1720223359465,-154.83742071,0.00043834,4]
[331321221,1720223380235,958.44471616,0.00043834,4]
[331321222,1720223396823,154.86833408,0.00043834,4]
[331321223,1720223402293,-775.03553013,0.000469,28]
[331321224,1720223405288,-292.49978271,0.00047,30]
[331321225,1720223405722,-1067.53531284,0.00047,30]
[331321226,1720223406150,-1067.53531284,0.00047,30]
[331321227,1720223406182,155.0,0.00043834,4]
[331321228,1720223406563,-1067.53531284,0.00047,30]
[331321229,1720223411214,155.0,0.00043834,4]
[331321230,1720223432152,442.51196875,0.00043834,4]
[331321248,1720223444024,-26797.32908396,0.00047,30]
[331321249,1720223444034,-3000.0,0.00047,2]
[331321250,1720223444044,-500.0,0.00049,120]
[331321251,1720223444053,-500.0,0.00049,120]
[331321252,1720223444062,-500.0,0.00049,120]
[331321253,1720223444072,-500.0,0.00049,120]
[331321254,1720223444081,-500.0,0.00049,120]
[331321255,1720223444090,-500.0,0.00049,120]
[331321256,1720223444099,-500.0,0.00049,120]
[331321257,1720223444109,-500.0,0.00049,120]
[331321258,1720223444118,-500.0,0.00049,120]
[331321259,1720223444127,-500.0,0.00049,120]
[331321260,1720223444136,-413.92,0.00049,120]
[331321261,1720223444146,-1273.977,0.0004908,90]
[331321262,1720223444155,-1427.07015857,0.00049115,2]
[331321263,1720223444164,-1427.07015855,0.0004914,2]
[331321264,1720223444174,-1427.07015855,0.00049165,2]
[331321265,1720223444183,-1667.42,0.00049185,3]
[331321266,1720223444191,-1389.52,0.00049185,3]
[331321267,1720223444201,-1157.93,0.00049185,3]
[331321268,1720223444210,-1427.07015855,0.0004919,2]
[331321269,1720223444220,-80009.6159377,0.00049195,6]
[331321270,1720223444230,-45827.401449,0.000492,2]
[331321271,1720223444239,-52049.40733,0.00049205,61]
[331321272,1720223444250,-36937.31180907,0.00049205,5]
[331321273,1720223444261,-1427.07015855,0.00049215,2]
[331321274,1720223444281,-2000.0,0.00049215,120]
[331321275,1720223444301,-500.0,0.00049293,7]
[331321276,1720223444315,-500.0,0.00049293,7]
[331321277,1720223444327,-500.0,0.00049293,7]
[331321278,1720223444336,-342.07196775,0.00049293,7]
[331321279,1720223444346,-500.0,0.00049293,7]
[331321280,1720223444361,-500.0,0.00049293,7]
[331321281,1720223444374,-500.0,0.00049293,7]
[331321282,1720223444385,-500.0,0.00049293,7]
[331321283,1720223444396,-500.0,0.00049293,7]
[331321284,1720223444405,-126889.81467576,0.00049294,6]
[331321285,1720223444418,-15076.52355028,0.00049294,6]
[331321288,1720223445654,-18052.89364896,0.00049294,6]
[331321289,1720223445663,-47055.4514595,0.00049294,61]
[331321290,1720223445672,-80009.6159377,0.00049295,6]
[331321291,1720223445681,-80009.6159377,0.00049295,6]
[331321293,1720223445690,-344.28471256,0.00049304,120]
[331321295,1720223445699,-1000.0,0.00049304,2]
[331321296,1720223445708,-7206.85972322,0.00049305,120]
[331321298,1720223445718,-500.0,0.00049314,120]
[331321299,1720223445727,-500.0,0.00049314,120]
[331321300,1720223445736,-208.54810661,0.00049314,31]
[331321301,1720223445745,-156.57080053,0.00049314,120]
[331321302,1720223445754,-500.0,0.00049314,120]
[331321303,1720223445763,-617.80648302,0.00049314,120]
[331321304,1720223445775,-500.0,0.00049314,120]
[331321305,1720223445785,-183.02041543,0.00049314,120]
[331321306,1720223445795,-500.0,0.00049314,120]
[331321307,1720223445804,-500.0,0.00049314,120]
[331321308,1720223445814,-500.0,0.00049314,120]
[331321309,1720223445823,-500.0,0.00049314,120]
[331321310,1720223445831,-500.0,0.00049314,120]
[331321311,1720223445841,-500.0,0.00049314,120]
[331321312,1720223445850,-500.0,0.00049314,120]
[331321313,1720223445859,-500.0,0.00049314,120]
[331321314,1720223445868,-500.0,0.00049314,120]
[331321315,1720223445878,-500.0,0.00049314,120]
[331321316,1720223445887,-500.0,0.00049314,120]
[331321317,1720223445896,-500.0,0.00049314,120]
[331321318,1720223445906,-611.20429936,0.00049314,120]
[331321319,1720223445915,-500.0,0.00049314,120]
[331321320,1720223445924,-500.0,0.00049314,120]
[331321321,1720223445933,-500.0,0.00049314,120]
[331321322,1720223445943,-500.0,0.00049314,120]
[331321323,1720223445952,-500.0,0.00049314,120]
[331321324,1720223445961,-500.0,0.00049314,120]
[331321325,1720223445970,-500.0,0.00049314,120]
[331321326,1720223445980,-500.0,0.00049314,120]
[331321327,1720223445989,-500.0,0.00049314,120]
[331321328,1720223445998,-500.0,0.00049314,120]
[331321329,1720223446007,-500.0,0.00049314,120]
[331321330,1720223446016,-1093.46,0.00049315,120]
[331321331,1720223446025,-500.0,0.00049315,120]
[331321332,1720223446035,-563.99545305,0.00049315,120]
[331321333,1720223446043,-500.0,0.00049315,120]
[331321334,1720223446052,-500.0,0.00049315,120]
[331321335,1720223446061,-500.0,0.00049315,120]
[331321336,1720223446070,-500.0,0.00049315,120]
[331321337,1720223446079,-543.55170723,0.00049315,3]
[331321338,1720223446088,-500.0,0.00049315,120]
[331321339,1720223446097,-500.0,0.00049315,120]
[331321340,1720223446106,-500.0,0.00049315,120]
[331321341,1720223446115,-214.09258691,0.00049315,120]
[331321342,1720223446124,-582.63,0.00049315,120]
[331321343,1720223446133,-500.0,0.00049315,120]
[331321344,1720223446143,-500.0,0.00049315,120]
[331321345,1720223446152,-500.0,0.00049315,120]
[331321346,1720223446161,-500.0,0.00049315,120]
[331321347,1720223446170,-181.2167162,0.00049315,120]
[331321348,1720223446180,-500.0,0.00049315,120]
[331321349,1720223446190,-500.0,0.00049315,120]
[331321350,1720223446200,-500.0,0.00049315,120]
[331321351,1720223446209,-870.18,0.00049315,120]
[331321352,1720223446219,-500.0,0.00049315,120]
[331321353,1720223446228,-500.0,0.00049315,120]
[331321354,1720223446240,-500.0,0.00049315,120]
[331321356,1720223446249,-500.0,0.00049315,120]
[331321358,1720223446258,-500.0,0.00049315,120]
[331321359,1720223446268,-500.0,0.00049315,120]
[331321360,1720223446279,-500.0,0.00049315,3]
[331321361,1720223446288,-500.0,0.00049315,120]
[331321363,1720223446298,-500.0,0.00049315,120]
[331321365,1720223446308,-500.0,0.00049315,120]
[331321367,1720223446317,-500.0,0.00049315,120]
[331321369,1720223446326,-500.0,0.00049315,120]
[331321371,1720223446335,-500.0,0.00049315,120]
[331321373,1720223446344,-594.90378457,0.00049315,120]
[331321375,1720223446353,-500.0,0.00049315,120]
[331321377,1720223446362,-500.0,0.00049315,120]
[331321379,1720223446371,-503.32042959,0.00049315,120]
[331321380,1720223446380,-1265.32,0.00049315,120]
[331321382,1720223446389,-500.0,0.00049315,120]
[331321384,1720223446399,-500.0,0.00049315,120]
[331321386,1720223446407,-500.0,0.00049315,120]
[331321388,1720223446417,-541.0502119,0.00049315,120]
[331321390,1720223446426,-500.0,0.00049315,120]
[331321392,1720223446435,-500.0,0.00049315,120]
[331321394,1720223446444,-500.0,0.00049315,120]
[331321396,1720223446453,-500.72786213,0.00049315,120]
[331321398,1720223446462,-500.0,0.00049315,120]
[331321399,1720223446474,-500.0,0.00049315,120]
[331321400,1720223446482,-500.0,0.00049315,120]
[331321401,1720223446491,-503.32400149,0.00049315,120]
[331321402,1720223446500,-500.0,0.00049315,120]
[331321403,1720223446509,-500.0,0.00049315,120]
[331321404,1720223446518,-500.0,0.00049315,120]
[331321405,1720223446527,-500.0,0.00049315,120]
[331321407,1720223446536,-500.0,0.00049315,120]
[331321408,1720223446551,-1448.83,0.00049315,120]
[331321409,1720223446560,-500.0,0.00049315,120]
[331321410,1720223446569,-500.0,0.00049315,120]
[331321411,1720223446578,-500.43385613,0.00049315,120]
[331321412,1720223446588,-500.0,0.00049315,120]
[331321413,1720223446597,-543.75,0.00049315,120]
[331321414,1720223446606,-500.0,0.00049315,120]
[331321415,1720223446615,-500.0,0.00049315,120]
[331321416,1720223446626,-500.0,0.00049315,120]
[331321417,1720223446635,-500.0,0.00049315,120]
[331321418,1720223446644,-500.0,0.00049315,120]
[331321419,1720223446653,-661.9,0.00049315,120]
[331321420,1720223446663,-500.0,0.00049315,120]
[331321421,1720223446672,-500.0,0.00049315,120]
[331321422,1720223446681,-500.0,0.00049315,120]
[331321423,1720223446690,-543.5,0.00049315,120]
[331321424,1720223446699,-510.88249659,0.00049315,120]
[331321425,1720223446708,-500.0,0.00049315,120]
[331321426,1720223446718,-500.0,0.00049315,120]
[331321427,1720223446728,-500.0,0.00049315,120]
[331321428,1720223446737,-500.0,0.00049315,120]
[331321429,1720223446746,-500.0,0.00049315,120]
[331321430,1720223446755,-500.0,0.00049315,120]
[331321431,1720223446764,-500.0,0.00049315,30]
[331321432,1720223446773,-500.0,0.00049315,120]
[331321433,1720223446783,-500.0,0.00049315,120]
[331321434,1720223446792,-1240.14,0.00049315,60]
[331321435,1720223446802,-153.88785637,0.00049315,120]
[331321436,1720223446812,-500.0,0.00049315,120]
[331321437,1720223446820,-500.0,0.00049315,120]
[331321438,1720223446829,-506.17867035,0.00049315,120]
[331321439,1720223446838,-500.0,0.00049315,120]
[331321440,1720223446847,-500.0,0.00049315,120]
[331321441,1720223446856,-500.0,0.00049315,120]
[331321442,1720223446865,-500.0,0.00049315,120]
[331321443,1720223446874,-1283.57,0.00049315,120]
[331321444,1720223446886,-500.0,0.00049315,120]
[331321445,1720223446895,-513.69330716,0.00049315,120]
[331321446,1720223446905,-500.0,0.00049315,120]
[331321447,1720223446914,-500.0,0.00049315,120]
[331321448,1720223446923,-1145.03,0.00049315,120]
[331321449,1720223446933,-500.0,0.00049315,120]
[331321450,1720223446942,-500.0,0.00049315,120]
[331321451,1720223446951,-500.0,0.00049315,120]
[331321452,1720223446960,-982.87,0.00049315,120]
[331321453,1720223446970,-500.0,0.00049315,120]
[331321454,1720223446980,-500.0,0.00049315,120]
[331321455,1720223446991,-500.0,0.00049315,120]
[331321456,1720223447000,-500.0,0.00049315,120]
[331321457,1720223447009,-500.0,0.00049315,120]
[331321458,1720223447019,-306.30698272,0.00049315,120]
[331321459,1720223447029,-500.81615623,0.00049315,120]
[331321460,1720223447038,-500.0,0.00049315,120]
[331321461,1720223447047,-500.0,0.00049315,120]
[331321462,1720223447058,-770.43,0.00049315,120]
[331321463,1720223447067,-500.0,0.00049315,120]
[331321464,1720223447076,-534.47,0.00049315,120]
[331321465,1720223447085,-531.71597407,0.00049315,120]
[331321466,1720223447094,-500.0,0.00049315,120]
[331321467,1720223447102,-537.34,0.00049315,120]
[331321468,1720223447111,-653.83,0.00049315,120]
[331321469,1720223447120,-1117.01,0.00049315,120]
[331321470,1720223447130,-500.0,0.00049315,120]
[331321471,1720223447139,-513.41,0.00049315,120]
[331321472,1720223447149,-500.0,0.00049315,120]
[331321473,1720223447157,-500.0,0.00049315,120]
[331321474,1720223447166,-500.0,0.00049315,120]
[331321475,1720223447175,-500.0,0.00049315,120]
[331321476,1720223447184,-500.0,0.00049315,120]
[331321477,1720223447193,-500.0,0.00049315,120]
[331321478,1720223447202,-500.0,0.00049315,120]
[331321479,1720223447211,-500.0,0.00049315,120]
[331321480,1720223447221,-500.0,0.00049315,120]
[331321481,1720223447230,-500.0,0.00049315,120]
[331321482,1720223447239,-500.0,0.00049315,120]
[331321483,1720223447247,-500.0,0.00049315,120]
[331321484,1720223447260,-500.0,0.00049315,120]
[331321485,1720223447271,-500.0,0.00049315,120]
[331321486,1720223447281,-500.0,0.00049315,120]
[331321487,1720223447291,-500.0,0.00049315,120]
[331321488,1720223447300,-500.0,0.00049315,120]
[331321489,1720223447311,-500.0,0.00049315,120]
[331321490,1720223447320,-500.0,0.00049315,120]
[331321491,1720223447330,-500.0,0.00049315,120]
[331321492,1720223447339,-500.0,0.00049315,120]
[331321493,1720223447349,-500.0,0.00049315,120]
[331321494,1720223447358,-500.0,0.00049315,120]
[331321495,1720223447368,-500.0,0.00049315,120]
[331321496,1720223447377,-500.0,0.00049315,120]
[331321497,1720223447386,-500.0,0.00049315,120]
[331321498,1720223447396,-500.0,0.00049315,120]
[331321499,1720223447405,-500.0,0.00049315,120]
[331321500,1720223447414,-500.0,0.00049315,120]
[331321501,1720223447423,-857.39,0.00049315,120]
[331321502,1720223447433,-500.0,0.00049315,120]
[331321503,1720223447442,-500.0,0.00049315,120]
[331321504,1720223447452,-500.0,0.00049315,120]
[331321505,1720223447461,-502.20551852,0.00049315,120]
[331321506,1720223447490,-500.0,0.00049315,120]
[331321507,1720223447523,-500.0,0.00049315,120]
[331321508,1720223447554,-500.0,0.00049315,120]
[331321509,1720223447563,-712.05,0.00049315,120]
[331321510,1720223447575,-500.0,0.00049315,120]
[331321511,1720223447601,-500.0,0.00049315,120]
[331321512,1720223447618,-500.0,0.00049315,120]
[331321513,1720223447630,-238.21381551,0.00049315,120]
[331321514,1720223447639,-500.0,0.00049315,120]
[331321515,1720223447652,-500.0,0.00049315,120]
[331321516,1720223447662,-500.0,0.00049315,120]
[331321517,1720223447671,-500.0,0.00049315,120]
[331321518,1720223447680,-500.0,0.00049315,120]
[331321519,1720223447691,-500.0,0.00049315,120]
[331321520,1720223447706,-500.0,0.00049315,120]
[331321521,1720223447716,-502.78324507,0.00049315,120]
[331321522,1720223447727,-500.0,0.00049315,120]
[331321523,1720223447736,-634.49,0.00049315,120]
[331321524,1720223447747,-500.0,0.00049315,120]
[331321525,1720223447755,-954.2,0.00049315,120]
[331321526,1720223447764,-1599.11,0.00049315,120]
[331321527,1720223447776,-500.0,0.00049315,120]
[331321528,1720223447786,-501.37394267,0.00049315,120]
[331321529,1720223447795,-1317.77,0.00049315,120]
[331321530,1720223447804,-500.0,0.00049315,120]
[331321531,1720223447815,-500.0,0.00049315,120]
[331321532,1720223447824,-500.0,0.00049315,120]
[331321533,1720223447834,-500.0,0.00049315,120]
[331321534,1720223447843,-500.0,0.00049315,120]
[331321535,1720223447855,-500.0,0.00049315,120]
[331321536,1720223447867,-373.30624438,0.00049315,120]
[331321537,1720223447877,-500.0,0.00049315,120]
[331321538,1720223447886,-667.5,0.00049315,120]
[331321539,1720223447895,-500.7675816,0.00049315,120]
[331321540,1720223447905,-500.0,0.00049315,120]
[331321541,1720223447914,-500.0,0.00049315,120]
[331321542,1720223447923,-500.0,0.00049315,120]
[331321543,1720223447933,-500.0,0.00049315,120]
[331321544,1720223447942,-500.0,0.00049315,120]
[331321545,1720223447953,-500.0,0.00049315,120]
[331321546,1720223447962,-500.0,0.00049315,120]
[331321547,1720223447972,-500.0,0.00049315,120]
[331321548,1720223447982,-800.55252349,0.00049315,120]
[331321549,1720223448001,-4199.44747651,0.00049315,120]
[331321550,1720223448010,-500.0,0.00049315,120]
[331321551,1720223448019,-500.0,0.00049315,120]
[331321552,1720223448028,-500.0,0.00049315,120]
[331321553,1720223448038,-233.01692564,0.00049315,120]
[331321554,1720223448047,-762.19,0.00049315,120]
[331321555,1720223448058,-500.0,0.00049315,120]
[331321556,1720223448068,-503.3,0.00049315,120]
[331321557,1720223448078,-678.68,0.00049315,120]
[331321558,1720223448088,-500.0,0.00049315,120]
[331321559,1720223448097,-500.0,0.00049315,120]
[331321560,1720223448107,-500.0,0.00049315,120]
[331321561,1720223448117,-500.0,0.00049315,120]
[331321562,1720223448127,-500.0,0.00049315,120]
[331321563,1720223448136,-529.87353148,0.00049315,120]
[331321564,1720223448298,-500.0,0.00049315,120]
[331321565,1720223448308,-918.91,0.00049315,120]
[331321566,1720223448318,-500.0,0.00049315,120]
[331321567,1720223448327,-500.0,0.00049315,120]
[331321568,1720223448336,-500.0,0.00049315,120]
[331321569,1720223448345,-500.0,0.00049315,120]
[331321570,1720223448354,-500.0,0.00049315,120]
[331321571,1720223448363,-602.01,0.00049315,120]
[331321572,1720223448372,-1087.25,0.00049315,120]
[331321573,1720223448381,-500.0,0.00049315,120]
[331321574,1720223448391,-509.95246478,0.00049315,120]
[331321575,1720223448400,-513.93,0.00049315,120]
[331321576,1720223448409,-670.58736382,0.00049315,120]
[331321577,1720223448418,-500.0,0.00049315,120]
[331321578,1720223448427,-500.0,0.00049315,120]
[331321579,1720223448436,-500.0,0.00049315,120]
[331321580,1720223448445,-462.07622331,0.00049315,120]
[331321581,1720223448454,-500.0,0.00049315,20]
[331321582,1720223448464,-500.0,0.00049315,120]
[331321583,1720223448473,-500.0,0.00049315,120]
[331321584,1720223448483,-742.56,0.00049315,120]
[331321585,1720223448492,-467.28518358,0.00049315,120]
[331321586,1720223448502,-557.72328555,0.00049315,120]
[331321587,1720223448511,-500.0,0.00049315,2]
[331321588,1720223448520,-500.0,0.00049315,120]
[331321589,1720223448529,-500.0,0.00049315,120]
[331321590,1720223448538,-179.9860862,0.00049315,120]
[331321591,1720223448556,-320.0139138,0.00049315,120]
[331321592,1720223448565,-1164.46,0.00049315,120]
[331321593,1720223448574,-500.0,0.00049315,120]
[331321594,1720223448583,-500.0,0.00049315,120]
[331321595,1720223448593,-3190.2,0.00049315,120]
[331321596,1720223448602,-502.01154538,0.00049315,120]
[331321597,1720223448611,-500.0,0.00049315,120]
[331321598,1720223448623,-500.0,0.00049315,120]
[331321599,1720223448632,-1584.24,0.00049315,120]
[331321600,1720223448641,-500.0,0.00049315,120]
[331321601,1720223448650,-577.33,0.00049315,120]
[331321602,1720223448659,-500.0,0.00049315,120]
[331321603,1720223448668,-500.0,0.00049315,120]
[331321604,1720223448677,-19150.63784532,0.00049315,120]
[331321605,1720223448688,-1073.21524259,0.00049315,120]
[331321609,1720223448923,-711.04822513,0.00049315,120]
[331321610,1720223448968,-451.51601229,0.00049315,120]
[331321611,1720223448979,-545.89534636,0.00049315,120]
[331321612,1720223449127,-727.25792353,0.00049315,120]
[331321613,1720223449139,-1000.47940478,0.00049315,120]
[331321614,1720223449147,-200.0,0.00049315,7]
[331321615,1720223449156,-603.84401822,0.00049315,120]
[331321616,1720223449171,-553.17598178,0.00049315,120]
[331321617,1720223449180,-287.096923,0.00049315,14]
[331321618,1720223449189,-524.12,0.00049315,120]
[331321619,1720223449199,-601.42,0.00049315,120]
[331321620,1720223449208,-287.096923,0.00049315,14]
[331321621,1720223449217,-785.69,0.00049315,120]
[331321622,1720223449226,-500.0,0.00049315,120]
[331321623,1720223449251,-500.0,0.00049315,120]
[331321624,1720223449260,-398.11253063,0.00049315,120]
[331321625,1720223449272,-101.88746937,0.00049315,120]
[331321626,1720223449281,-171.05943215,0.00049315,120]
[331321627,1720223449292,-328.94056785,0.00049315,120]
[331321628,1720223449301,-500.0,0.00049315,120]
[331321629,1720223449311,-132.25961591,0.00049315,120]
[331321630,1720223449322,-2376.54627505,0.00049315,120]
[331321631,1720223449333,-201.13410904,0.00049315,120]
[331321632,1720223449343,-254.6769656,0.00049315,120]
[331321633,1720223449355,-542.9130344,0.00049315,120]
[331321634,1720223449364,-1877.49369783,0.00049315,120]
[331321636,1720223457361,164.867332,0.00021096,2]
[331321637,1720223461172,1568.48925423,0.00043834,120]
[331321638,1720223476296,1214.39300328,0.00043834,120]
[331321639,1720223476723,354.09625095,0.00043834,120]
[331321640,1720223486592,3482.56021024,0.00043834,4]
[331321641,1720223486995,304.10670477,0.00043834,2]
[331321642,1720223487419,175.0,0.0004399,31]
[331321643,1720223491897,377.38683404,0.00043834,4]
[331321644,1720223492245,4015.36521479,0.00043834,4]
[331321645,1720223495272,534.932982,0.0004171,2]
[331321646,1720223495615,2281.12756339,0.0004171,2]
[331321647,1720223495946,1205.64492281,0.0004171,2]
[331321648,1720223533296,211.90830169,0.00043834,4]
[331322374,1720224427799,-179.456719,0.00021096,2]
[331322375,1720224428967,-3995.73627618,0.0003468,2]
[331322376,1720224429440,-985.95700482,0.00037523,4]
[331322377,1720224432109,-150.30016482,0.00037523,4]
[331322378,1720224437141,-696.2767755,0.00037523,4]
[331322379,1720224452246,-1294.60210537,0.00037523,4]
[331322380,1720224452296,-300.0,0.00037587,2]
[331322381,1720224453192,-908.22919531,0.00038999,4]
[331322382,1720224453220,-199.9335602,0.00039189,2]
[331322383,1720224453241,-250.0,0.00039328,2]
[331322384,1720224453263,-304.7914253,0.00039999,4]
[331322385,1720224453283,-1000.0,0.0004,2]
[331322386,1720224453303,-737.673394,0.00040012,2]
[331322387,1720224453323,-194.36233337,0.00040807,4]
[331322388,1720224453343,-518.85515067,0.00041999,4]
[331322389,1720224453363,-2040.1668314,0.00043,120]